fUSD/lending_fUSD_20250209
["ID","MTS","AMOUNT","RATE_DAILY","PERIOD"]
[352474611,1739130650254,-500.0,0.00011368,2]
[352474612,1739130650263,-500.0,0.00011368,2]
[352474613,1739130650273,-500.0,0.00011368,2]
[352474614,1739130650282,-642.43,0.00011368,2]
[352474615,1739130650291,-528.97,0.00011368,2]
[352474616,1739130650300,-500.0,0.00011368,2]
[352474617,1739130650309,-500.0,0.00011368,2]
[352474618,1739130650319,-574.86,0.00011368,2]
[352474619,1739130650329,-406.02686,0.00011368,2]
[352474620,1739130650340,-500.0,0.00011368,2]
[352474621,1739130650349,-957.84,0.00011369,2]
[352474622,1739130650360,-500.0,0.00011369,2]
[352474623,1739130650370,-500.0,0.00011369,2]
[352474624,1739130650379,-722.33,0.00011369,2]
[352474625,1739130650389,-500.0,0.00011369,2]
[352474626,1739130650400,-714.58,0.00011369,2]
[352474627,1739130650410,-500.0,0.00011369,2]
[352474628,1739130650420,-500.0,0.00011369,2]
[352474629,1739130650430,-608.5,0.00011369,2]
[352474630,1739130650439,-500.0,0.00011369,2]
[352474631,1739130650449,-500.0,0.00011369,2]
[352474632,1739130650463,-500.0,0.00011369,2]
[352474633,1739130650473,-285.18,0.00011369,2]
[352474634,1739130650483,-500.0,0.00011369,2]
[352474635,1739130650493,-500.0,0.00011369,2]
[352474636,1739130650503,-381.451289,0.00011369,2]
[352474637,1739130650514,-631.5,0.00011369,2]
[352474638,1739130650525,-905.78,0.00011369,2]
[352474639,1739130650535,-500.0,0.00011369,2]
[352474640,1739130650547,-500.0,0.00011369,2]
[352474641,1739130650557,-500.0,0.00011369,2]
[352474642,1739130650566,-500.0,0.00011369,2]
[352474643,1739130650576,-622.63,0.00011369,2]
[352474644,1739130650586,-617.22,0.00011369,2]
[352474645,1739130650596,-849.26,0.00011369,2]
[352474646,1739130650606,-980.02,0.00011369,2]
[352474647,1739130650616,-500.0,0.00011369,2]
[352474648,1739130650626,-500.0,0.00011369,2]
[352474649,1739130650635,-1303.93,0.00011369,2]
[352474650,1739130650645,-500.0,0.00011369,2]
[352474651,1739130650655,-677.21,0.00011369,2]
[352474652,1739130650664,-621.58,0.00011369,2]
[352474653,1739130650674,-540.57,0.00011369,2]
[352474654,1739130650684,-500.0,0.00011369,2]
[352474655,1739130650694,-584.15,0.00011369,2]
[352474656,1739130650704,-500.0,0.00011369,2]
[352474657,1739130650714,-500.0,0.00011369,2]
[352474658,1739130650723,-1219.09,0.00011369,2]
[352474659,1739130650733,-500.0,0.00011369,2]
[352474660,1739130650743,-745.03,0.00011369,2]
[352474661,1739130650752,-500.0,0.00011369,2]
[352474662,1739130650761,-500.0,0.00011369,2]
[352474663,1739130650771,-500.0,0.00011369,2]
[352474664,1739130650781,-294.18,0.00011369,2]
[352474665,1739130650791,-500.0,0.00011369,2]
[352474666,1739130650801,-630.33,0.00011369,2]
[352474667,1739130650811,-2246.07,0.00011369,2]
[352474668,1739130650820,-500.0,0.00011369,2]
[352474669,1739130650830,-685.95,0.00011369,2]
[352474670,1739130650839,-500.0,0.00011369,2]
[352474671,1739130650850,-500.0,0.00011369,2]
[352474672,1739130650859,-543.13,0.00011369,2]
[352474673,1739130650869,-176.33,0.00011398,2]
[352474674,1739130650879,-12221.19587197,0.00011452,2]
[352474675,1739130650889,-242.73881166,0.00011498,5]
[352474676,1739130650901,-1845.0,0.00011498,8]
[352474677,1739130650911,-150.0,0.00011499,5]
[352474678,1739130650922,-500.0,0.00011505,2]
[352474679,1739130650931,-500.0,0.00011505,2]
[352474680,1739130650943,-500.0,0.00011505,2]
[352474681,1739130650952,-500.0,0.00011505,2]
[352474682,1739130650962,-642.43,0.00011505,2]
[352474683,1739130650972,-528.97,0.00011505,2]
[352474684,1739130650982,-500.0,0.00011505,2]
[352474685,1739130650993,-500.0,0.00011505,2]
[352474686,1739130651003,-1073.03,0.00011505,2]
[352474687,1739130651012,-574.86,0.00011505,2]
[352474688,1739130651022,-406.02686,0.00011505,2]
[352474689,1739130651032,-500.0,0.00011505,2]
[352474690,1739130651042,-957.84,0.00011506,2]
[352474691,1739130651052,-500.0,0.00011506,2]
[352474692,1739130651061,-500.0,0.00011506,2]
[352474693,1739130651071,-722.33,0.00011506,2]
[352474694,1739130651082,-500.0,0.00011506,2]
[352474695,1739130651092,-714.58,0.00011506,2]
[352474696,1739130651103,-500.0,0.00011506,2]
[352474697,1739130651112,-500.0,0.00011506,2]
[352474698,1739130651122,-608.5,0.00011506,2]
[352474699,1739130651132,-500.0,0.00011506,2]
[352474700,1739130651142,-500.0,0.00011506,2]
[352474701,1739130651151,-500.0,0.00011506,2]
[352474702,1739130651161,-500.0,0.00011506,2]
[352474703,1739130651171,-500.0,0.00011506,2]
[352474704,1739130651180,-381.451289,0.00011506,2]
[352474705,1739130651190,-631.5,0.00011506,2]
[352474706,1739130651201,-905.78,0.00011506,2]
[352474707,1739130651211,-500.0,0.00011506,2]
[352474708,1739130651221,-624.54,0.00011506,2]
[352474709,1739130651231,-500.0,0.00011506,2]
[352474710,1739130651241,-500.0,0.00011506,2]
[352474711,1739130651251,-622.63,0.00011506,2]
[352474712,1739130651261,-617.22,0.00011506,2]
[352474713,1739130651271,-849.26,0.00011506,2]
[352474714,1739130651280,-980.02,0.00011506,2]
[352474715,1739130651289,-500.0,0.00011506,2]
[352474716,1739130651299,-500.0,0.00011506,2]
[352474717,1739130651310,-1303.93,0.00011506,2]
[352474718,1739130651320,-500.0,0.00011506,2]
[352474719,1739130651330,-677.21,0.00011506,2]
[352474720,1739130651339,-621.58,0.00011506,2]
[352474721,1739130651349,-540.57,0.00011506,2]
[352474722,1739130651359,-500.0,0.00011506,2]
[352474723,1739130651369,-584.15,0.00011506,2]
[352474724,1739130651379,-500.0,0.00011506,2]
[352474725,1739130651389,-500.0,0.00011506,2]
[352474726,1739130651399,-1219.09,0.00011506,2]
[352474727,1739130651409,-500.0,0.00011506,2]
[352474728,1739130651419,-745.03,0.00011506,2]
[352474729,1739130651428,-500.0,0.00011506,2]
[352474730,1739130651439,-448.35,0.00011506,2]
[352474731,1739130651449,-477.32,0.00011506,2]
[352474732,1739130651459,-500.0,0.00011506,2]
[352474733,1739130651469,-630.33,0.00011506,2]
[352474734,1739130651480,-2246.07,0.00011506,2]
[352474735,1739130651490,-447.89,0.00011506,2]
[352474736,1739130651500,-685.95,0.00011506,2]
[352474737,1739130651510,-500.0,0.00011506,2]
[352474738,1739130651521,-500.0,0.00011506,2]
[352474739,1739130651531,-543.13,0.00011506,2]
[352474740,1739130651540,-1059.0,0.00011506,2]
[352474741,1739130651550,-2751.0,0.00011507,2]
[352474742,1739130651560,-617.61413926,0.00011514,2]
[352474743,1739130651569,-1000.0,0.00011542,2]
[352474744,1739130651579,-382.66,0.00011591,2]
[352474745,1739130651589,-796.33153603,0.000116,2]
[352474746,1739130651599,-1000.0,0.00011603,2]
[352474747,1739130651609,-1000.0,0.00011603,2]
[352474748,1739130651619,-1000.0,0.00011603,2]
[352474749,1739130651629,-1000.0,0.00011603,2]
[352474750,1739130651639,-1000.0,0.00011603,2]
[352474751,1739130651649,-1000.0,0.00011603,2]
[352474752,1739130651660,-1000.0,0.00011603,2]
[352474753,1739130651670,-1000.0,0.00011603,2]
[352474754,1739130651680,-1000.0,0.00011603,2]
[352474755,1739130651690,-1000.0,0.00011603,2]
[352474756,1739130651700,-500.0,0.00011642,2]
[352474757,1739130651709,-374.17,0.00011642,2]
[352474758,1739130651720,-500.0,0.00011642,2]
[352474759,1739130651730,-381.8,0.00011642,2]
[352474760,1739130651739,-642.43,0.00011642,2]
[352474761,1739130651749,-528.97,0.00011642,2]
[352474762,1739130651759,-500.0,0.00011642,2]
[352474763,1739130651769,-500.0,0.00011642,2]
[352474764,1739130651779,-574.86,0.00011642,2]
[352474765,1739130651789,-406.02686,0.00011642,2]
[352474766,1739130651799,-500.0,0.00011642,2]
[352474767,1739130651809,-957.84,0.00011643,2]
[352474768,1739130651820,-500.0,0.00011643,2]
[352474769,1739130651830,-500.0,0.00011643,2]
[352474770,1739130651839,-722.33,0.00011643,2]
[352474771,1739130651849,-500.0,0.00011643,2]
[352474772,1739130651859,-714.58,0.00011643,2]
[352474773,1739130651870,-500.0,0.00011643,2]
[352474774,1739130651880,-500.0,0.00011643,2]
[352474775,1739130651889,-608.5,0.00011643,2]
[352474776,1739130651902,-500.0,0.00011643,2]
[352474777,1739130651912,-500.0,0.00011643,2]
[352474778,1739130651922,-468.27,0.00011643,2]
[352474779,1739130651932,-500.0,0.00011643,2]
[352474780,1739130651942,-545.27,0.00011643,2]
[352474781,1739130651951,-381.451289,0.00011643,2]
[352474782,1739130651961,-631.5,0.00011643,2]
[352474783,1739130651971,-905.78,0.00011643,2]
[352474784,1739130651980,-500.0,0.00011643,2]
[352474785,1739130651990,-500.0,0.00011643,2]
[352474786,1739130652000,-500.0,0.00011643,2]
[352474787,1739130652011,-622.63,0.00011643,2]
[352474788,1739130652020,-617.22,0.00011643,2]
[352474789,1739130652030,-849.26,0.00011643,2]
[352474790,1739130652040,-980.02,0.00011643,2]
[352474791,1739130652050,-500.0,0.00011643,2]
[352474792,1739130652060,-1303.93,0.00011643,2]
[352474793,1739130652070,-500.0,0.00011643,2]
[352474794,1739130652081,-677.21,0.00011643,2]
[352474795,1739130652091,-621.58,0.00011643,2]
[352474796,1739130652101,-540.57,0.00011643,2]
[352474797,1739130652111,-500.0,0.00011643,2]
[352474798,1739130652121,-584.15,0.00011643,2]
[352474799,1739130652130,-500.0,0.00011643,2]
[352474800,1739130652141,-500.0,0.00011643,2]
[352474801,1739130652151,-1219.09,0.00011643,2]
[352474802,1739130652160,-500.0,0.00011643,2]
[352474803,1739130652170,-745.03,0.00011643,2]
[352474804,1739130652180,-500.0,0.00011643,2]
[352474805,1739130652190,-500.0,0.00011643,2]
[352474806,1739130652200,-630.33,0.00011643,2]
[352474807,1739130652210,-2246.07,0.00011643,2]
[352474808,1739130652220,-685.95,0.00011643,2]
[352474809,1739130652229,-500.0,0.00011643,2]
[352474810,1739130652239,-500.0,0.00011643,2]
[352474811,1739130652248,-543.13,0.00011643,2]
[352474812,1739130652258,-3512.4204297,0.00011672,2]
[352474813,1739130652267,-198.095966,0.00011672,2]
[352474814,1739130652277,-1071.4210288,0.00011692,2]
[352474815,1739130652287,-2691.8116053,0.00011692,2]
[352474816,1739130652296,-150.0,0.00011699,2]
[352474817,1739130652306,-150.0,0.00011699,2]
[352474818,1739130652315,-150.0,0.00011699,2]
[352474819,1739130652325,-2377.92185037,0.00011699,2]
[352474820,1739130652335,-1086.775734,0.00011699,2]
[352474821,1739130652345,-159.66849621,0.00011699,2]
[352474822,1739130652356,-150.0,0.00011699,2]
[352474823,1739130652366,-1651.92986185,0.00011699,2]
[352474824,1739130652377,-1073.03,0.00011699,2]
[352474825,1739130652387,-300.0,0.00011699,2]
[352474826,1739130652397,-300.0,0.00011699,2]
[352474827,1739130652407,-300.0,0.00011699,2]
[352474828,1739130652417,-300.0,0.00011699,2]
[352474829,1739130652428,-231975.04407345,0.000117,2]
[352474830,1739130652438,-828.2583,0.000117,2]
[352474831,1739130652448,-581.6945,0.000117,2]
[352474832,1739130652458,-12221.19587197,0.00011711,2]
[352474833,1739130652468,-500.0,0.00011779,2]
[352474834,1739130652478,-500.0,0.00011779,2]
[352474835,1739130652489,-642.43,0.00011779,2]
[352474836,1739130652499,-528.97,0.00011779,2]
[352474837,1739130652509,-500.0,0.00011779,2]
[352474838,1739130652518,-500.0,0.00011779,2]
[352474839,1739130652527,-574.86,0.00011779,2]
[352474840,1739130652538,-500.0,0.00011779,2]
[352474841,1739130652548,-957.84,0.0001178,2]
[352474842,1739130652558,-500.0,0.0001178,2]
[352474843,1739130652568,-500.0,0.0001178,2]
[352474844,1739130652577,-722.33,0.0001178,2]
[352474845,1739130652587,-649.1,0.0001178,2]
[352474846,1739130652597,-714.58,0.0001178,2]
[352474847,1739130652607,-500.0,0.0001178,2]
[352474848,1739130652617,-500.0,0.0001178,2]
[352474849,1739130652628,-608.5,0.0001178,2]
[352474850,1739130652638,-500.0,0.0001178,2]
[352474851,1739130652648,-500.0,0.0001178,2]
[352474852,1739130652658,-500.0,0.0001178,2]
[352474853,1739130652668,-631.5,0.0001178,2]
[352474854,1739130652680,-905.78,0.0001178,2]
[352474855,1739130652690,-347.92,0.0001178,2]
[352474856,1739130652701,-500.0,0.0001178,2]
[352474857,1739130652888,-500.0,0.0001178,2]
[352474858,1739130652901,-622.63,0.0001178,2]
[352474859,1739130652912,-617.22,0.0001178,2]
[352474860,1739130652922,-849.26,0.0001178,2]
[352474861,1739130652932,-980.02,0.0001178,2]
[352474862,1739130652943,-500.0,0.0001178,2]
[352474863,1739130652953,-500.0,0.0001178,2]
[352474864,1739130652963,-1303.93,0.0001178,2]
[352474865,1739130652973,-677.21,0.0001178,2]
[352474866,1739130652983,-621.58,0.0001178,2]
[352474867,1739130652993,-540.57,0.0001178,2]
[352474868,1739130653002,-500.0,0.0001178,2]
[352474869,1739130653012,-584.15,0.0001178,2]
[352474870,1739130653022,-500.0,0.0001178,2]
[352474871,1739130653032,-500.0,0.0001178,2]
[352474872,1739130653042,-1219.09,0.0001178,2]
[352474873,1739130653051,-500.0,0.0001178,2]
[352474874,1739130653061,-745.03,0.0001178,2]
[352474875,1739130653070,-500.0,0.0001178,2]
[352474876,1739130653079,-386.13,0.0001178,2]
[352474877,1739130653090,-630.33,0.0001178,2]
[352474878,1739130653100,-2246.07,0.0001178,2]
[352474879,1739130653110,-685.95,0.0001178,2]
[352474880,1739130653119,-500.0,0.0001178,2]
[352474881,1739130653129,-500.0,0.0001178,2]
[352474882,1739130653139,-543.13,0.0001178,2]
[352474883,1739130653149,-2000.0,0.00011792,4]
[352474884,1739130653158,-500.0,0.00011916,2]
[352474885,1739130653168,-500.0,0.00011916,2]
[352474886,1739130653178,-642.43,0.00011916,2]
[352474887,1739130653187,-528.97,0.00011916,2]
[352474888,1739130653197,-500.0,0.00011916,2]
[352474889,1739130653207,-500.0,0.00011916,2]
[352474890,1739130653217,-574.86,0.00011916,2]
[352474891,1739130653226,-500.0,0.00011916,2]
[352474892,1739130653236,-957.84,0.00011917,2]
[352474893,1739130653246,-500.0,0.00011917,2]
[352474894,1739130653256,-445.67,0.00011917,2]
[352474895,1739130653265,-722.33,0.00011917,2]
[352474896,1739130653275,-714.58,0.00011917,2]
[352474897,1739130653285,-301.82,0.00011917,2]
[352474898,1739130653294,-500.0,0.00011917,2]
[352474899,1739130653304,-608.5,0.00011917,2]
[352474900,1739130653313,-500.0,0.00011917,2]
[352474901,1739130653323,-500.0,0.00011917,2]
[352474902,1739130653333,-500.0,0.00011917,2]
[352474903,1739130653342,-631.5,0.00011917,2]
[352474904,1739130653352,-905.78,0.00011917,2]
[352474905,1739130653362,-500.0,0.00011917,2]
[352474906,1739130653371,-624.19,0.00011917,2]
[352474907,1739130653381,-622.63,0.00011917,2]
[352474908,1739130653391,-617.22,0.00011917,2]
[352474909,1739130653401,-849.26,0.00011917,2]
[352474910,1739130653410,-980.02,0.00011917,2]
[352474911,1739130653420,-500.0,0.00011917,2]
[352474912,1739130653432,-500.0,0.00011917,2]
[352474913,1739130653442,-1303.93,0.00011917,2]
[352474914,1739130653451,-677.21,0.00011917,2]
[352474915,1739130653461,-621.58,0.00011917,2]
[352474916,1739130653471,-540.57,0.00011917,2]
[352474917,1739130653480,-500.0,0.00011917,2]
[352474918,1739130653489,-584.15,0.00011917,2]
[352474919,1739130653499,-500.0,0.00011917,2]
[352474920,1739130653510,-500.0,0.00011917,2]
[352474921,1739130653519,-1219.09,0.00011917,2]
[352474922,1739130653529,-207.53,0.00011917,2]
[352474923,1739130653538,-745.03,0.00011917,2]
[352474924,1739130653547,-500.0,0.00011917,2]
[352474925,1739130653557,-630.33,0.00011917,2]
[352474926,1739130653567,-2246.07,0.00011917,2]
[352474927,1739130653576,-685.95,0.00011917,2]
[352474928,1739130653586,-500.0,0.00011917,2]
[352474929,1739130653595,-500.0,0.00011917,2]
[352474930,1739130653605,-543.13,0.00011917,2]
[352474931,1739130653614,-12221.19587197,0.0001197,2]
[352474932,1739130653624,-1264.5942201,0.00011991,2]
[352474933,1739130653633,-3177.1351374,0.00011992,2]
[352474934,1739130653643,-300.0,0.00011999,2]
[352474935,1739130653653,-300.0,0.00011999,2]
[352474936,1739130653662,-300.0,0.00011999,2]
[352474937,1739130653674,-300.0,0.00011999,2]
[352474938,1739130653684,-2380.4484101,0.00011999,2]
[352474939,1739130653694,-1073.03,0.00011999,2]
[352474940,1739130653704,-1073.03,0.00011999,2]
[352474941,1739130653713,-1073.03,0.00011999,2]
[352474942,1739130653723,-1073.03,0.00011999,2]
[352474943,1739130653732,-1073.12300935,0.00011999,2]
[352474944,1739130653742,-1400.00000007,0.00012,3]
[352474945,1739130653751,-107239.55698459,0.00012,2]
[352474946,1739130653761,-1000.0,0.00012,2]
[352474947,1739130653771,-1000.0,0.00012,2]
[352474948,1739130653781,-500.0,0.00012053,2]
[352474949,1739130653790,-500.0,0.00012053,2]
[352474950,1739130653799,-642.43,0.00012053,2]
[352474951,1739130653809,-528.97,0.00012053,2]
[352474952,1739130653818,-500.0,0.00012053,2]
[352474953,1739130653827,-500.0,0.00012053,2]
[352474954,1739130653837,-574.86,0.00012053,2]
[352474955,1739130653846,-500.0,0.00012053,2]
[352474956,1739130653856,-957.84,0.00012054,2]
[352474957,1739130653865,-500.0,0.00012054,2]
[352474958,1739130653875,-722.33,0.00012054,2]
[352474959,1739130653884,-714.58,0.00012054,2]
[352474960,1739130653894,-500.0,0.00012054,2]
[352474961,1739130653909,-608.5,0.00012054,2]
[352474962,1739130653919,-500.0,0.00012054,2]
[352474963,1739130653930,-500.0,0.00012054,2]
[352474964,1739130653940,-500.0,0.00012054,2]
[352474965,1739130653949,-631.5,0.00012054,2]
[352474966,1739130653959,-905.78,0.00012054,2]
[352474967,1739130653969,-201.06,0.00012054,2]
[352474968,1739130653978,-622.63,0.00012054,2]
[352474969,1739130653988,-617.22,0.00012054,2]
[352474970,1739130653998,-849.26,0.00012054,2]
[352474971,1739130654008,-980.02,0.00012054,2]
[352474972,1739130654018,-607.77,0.00012054,2]
[352474973,1739130654027,-500.0,0.00012054,2]
[352474974,1739130654037,-1303.93,0.00012054,2]
[352474975,1739130654047,-677.21,0.00012054,2]
[352474976,1739130654056,-621.58,0.00012054,2]
[352474977,1739130654065,-540.57,0.00012054,2]
[352474978,1739130654074,-500.0,0.00012054,2]
[352474979,1739130654083,-584.15,0.00012054,2]
[352474980,1739130654093,-442.48,0.00012054,2]
[352474981,1739130654103,-500.0,0.00012054,2]
[352474982,1739130654112,-1219.09,0.00012054,2]
[352474983,1739130654122,-745.03,0.00012054,2]
[352474984,1739130654131,-463.7026792,0.00012054,2]
[352474985,1739130654140,-630.33,0.00012054,2]
[352474986,1739130654150,-2246.07,0.00012054,2]
[352474987,1739130654160,-685.95,0.00012054,2]
[352474988,1739130654169,-500.0,0.00012054,2]
[352474989,1739130654180,-500.0,0.00012054,2]
[352474990,1739130654189,-543.13,0.00012054,2]
[352474991,1739130654199,-1059.0,0.00012082,2]
[352474992,1739130654209,-31064.25856154,0.00012082,3]
[352474993,1739130654219,-1000.0,0.00012164,2]
[352474994,1739130654228,-1000.0,0.00012164,2]
[352474995,1739130654238,-1000.0,0.00012164,2]
[352474996,1739130654248,-1000.0,0.00012164,2]
[352474997,1739130654258,-1000.0,0.00012164,2]
[352474998,1739130654267,-1000.0,0.00012164,2]
[352474999,1739130654278,-1000.0,0.00012164,2]
[352475000,1739130654287,-1000.0,0.00012164,2]
[352475001,1739130654296,-1000.0,0.00012164,2]
[352475002,1739130654305,-1000.0,0.00012164,2]
[352475003,1739130654314,-166.86077253,0.00012165,2]
[352475004,1739130654323,-500.0,0.0001219,2]
[352475005,1739130654332,-500.0,0.0001219,2]
[352475006,1739130654341,-642.43,0.0001219,2]
[352475007,1739130654351,-528.97,0.0001219,2]
[352475008,1739130654359,-500.0,0.0001219,2]
[352475009,1739130654368,-500.0,0.0001219,2]
[352475010,1739130654377,-574.86,0.0001219,2]
[352475011,1739130654386,-471.58,0.0001219,2]
[352475012,1739130654396,-957.84,0.00012191,2]
[352475013,1739130654405,-500.0,0.00012191,2]
[352475014,1739130654415,-722.33,0.00012191,2]
[352475015,1739130654424,-714.58,0.00012191,2]
[352475016,1739130654434,-500.0,0.00012191,2]
[352475017,1739130654444,-608.5,0.00012191,2]
[352475018,1739130654453,-500.0,0.00012191,2]
[352475019,1739130654463,-500.0,0.00012191,2]
[352475020,1739130654473,-500.0,0.00012191,2]
[352475021,1739130654482,-631.5,0.00012191,2]
[352475022,1739130654492,-905.78,0.00012191,2]
[352475023,1739130654501,-622.63,0.00012191,2]
[352475024,1739130654510,-617.22,0.00012191,2]
[352475025,1739130654520,-849.26,0.00012191,2]
[352475026,1739130654530,-980.02,0.00012191,2]
[352475027,1739130654539,-470.72135587,0.00012191,2]
[352475028,1739130654549,-1303.93,0.00012191,2]
[352475029,1739130654558,-677.21,0.00012191,2]
[352475030,1739130654568,-621.58,0.00012191,2]
[352475031,1739130654577,-540.57,0.00012191,2]
[352475032,1739130654588,-500.0,0.00012191,2]
[352475033,1739130654597,-584.15,0.00012191,2]
[352475034,1739130654607,-500.0,0.00012191,2]
[352475035,1739130654617,-1219.09,0.00012191,2]
[352475036,1739130654627,-745.03,0.00012191,2]
[352475037,1739130654636,-630.33,0.00012191,2]
[352475038,1739130654646,-2246.07,0.00012191,2]
[352475039,1739130654655,-685.95,0.00012191,2]
[352475040,1739130654664,-500.0,0.00012191,2]
[352475041,1739130654675,-500.0,0.00012191,2]
[352475042,1739130654685,-543.13,0.00012191,2]
[352475043,1739130654695,-500.0,0.000122,2]
[352475044,1739130654704,-500.0,0.000122,2]
[352475045,1739130654714,-500.0,0.000122,2]
[352475046,1739130654723,-500.0,0.000122,2]
[352475047,1739130654733,-500.0,0.000122,2]
[352475048,1739130654742,-500.0,0.000122,2]
[352475049,1739130654752,-500.01355272,0.000122,2]
[352475050,1739130654762,-500.0,0.000122,2]
[352475051,1739130654771,-500.0,0.000122,2]
[352475052,1739130654781,-12221.19587197,0.00012229,2]
[352475053,1739130654790,-500.0,0.000123,2]
[352475054,1739130654800,-1457.7674114,0.0001232,2]
[352475055,1739130654810,-3662.4586696,0.0001232,2]
[352475056,1739130654819,-500.0,0.00012327,2]
[352475057,1739130654829,-500.0,0.00012327,2]
[352475058,1739130654839,-642.43,0.00012327,2]
[352475059,1739130654848,-528.97,0.00012327,2]
[352475060,1739130654857,-500.0,0.00012327,2]
[352475061,1739130654867,-500.0,0.00012327,2]
[352475062,1739130654877,-574.86,0.00012327,2]
[352475063,1739130654888,-300.0,0.00012328,2]
[352475064,1739130654903,-300.0,0.00012328,2]
[352475065,1739130654912,-300.0,0.00012328,2]
[352475066,1739130654923,-1177.64376099,0.00012328,3]
[352475067,1739130654934,-957.84,0.00012328,2]
[352475068,1739130654944,-500.0,0.00012328,2]
[352475069,1739130654954,-722.33,0.00012328,2]
[352475070,1739130654964,-714.58,0.00012328,2]
[352475071,1739130654976,-500.0,0.00012328,2]
[352475072,1739130654988,-608.5,0.00012328,2]
[352475073,1739130654999,-500.0,0.00012328,2]
[352475074,1739130655009,-500.0,0.00012328,2]
[352475075,1739130655019,-500.0,0.00012328,2]
[352475076,1739130655029,-631.5,0.00012328,2]
[352475077,1739130655039,-905.78,0.00012328,2]
[352475078,1739130655048,-622.63,0.00012328,2]
[352475079,1739130655058,-617.22,0.00012328,2]
[352475080,1739130655068,-849.26,0.00012328,2]
[352475081,1739130655078,-980.02,0.00012328,2]
[352475082,1739130655086,-1303.93,0.00012328,2]
[352475083,1739130655095,-677.21,0.00012328,2]
[352475084,1739130655105,-621.58,0.00012328,2]
[352475085,1739130655114,-540.57,0.00012328,2]
[352475086,1739130655124,-164.52,0.00012328,2]
[352475087,1739130655134,-584.15,0.00012328,2]
[352475088,1739130655144,-500.0,0.00012328,2]
[352475089,1739130655153,-1219.09,0.00012328,2]
[352475090,1739130655164,-745.03,0.00012328,2]
[352475091,1739130655177,-630.33,0.00012328,2]
[352475092,1739130655187,-2246.07,0.00012328,2]
[352475093,1739130655198,-685.95,0.00012328,2]
[352475094,1739130655208,-500.0,0.00012328,2]
[352475095,1739130655263,-264.16,0.00012328,2]
[352475096,1739130655274,-543.13,0.00012328,2]
[352475097,1739130655284,-370.29,0.00012329,2]
[352475098,1739130655294,-151.0,0.00012329,2]
[352475099,1739130655304,-151.0,0.00012329,2]
[352475100,1739130655314,-277.297919,0.00012329,2]
[352475101,1739130655324,-151.0,0.00012329,2]
[352475102,1739130655334,-151.0,0.00012329,2]
[352475103,1739130655344,-151.0,0.00012329,2]
[352475104,1739130655354,-151.0,0.00012329,2]
[352475105,1739130655364,-151.0,0.00012329,2]
[352475106,1739130655373,-151.0,0.00012329,2]
[352475107,1739130655383,-151.0,0.00012329,2]
[352475108,1739130655393,-207.153641,0.00012329,2]
[352475109,1739130655402,-151.0,0.00012329,2]
[352475110,1739130655412,-207.153641,0.00012329,2]